fUSD/lending_fUSD_20250506
["ID","MTS","AMOUNT","RATE_DAILY","PERIOD"]
[360059597,1746529849204,-310.2780402,0.000199,2]
[360059598,1746529849215,-137714.8891252,0.000199,2]
[360059599,1746529849224,-4527.0589579,0.000199,2]
[360059600,1746529849234,-194.6083735,0.000199,2]
[360059601,1746529849244,-4186.35994324,0.000199,2]
[360059602,1746529849255,-1458.10604462,0.000199,2]
[360059603,1746529849265,-227.073121,0.000199,3]
[360059604,1746529849276,-150.0,0.00019918,7]
[360059605,1746529849287,-500.0,0.00019918,2]
[360059606,1746529849297,-154.238,0.00019953,2]
[360059607,1746529849307,-245.67,0.00019953,2]
[360059608,1746529849317,-253.434,0.00019953,2]
[360059609,1746529849328,-500.0,0.00019973,2]
[360059610,1746529849338,-500.0,0.00019973,2]
[360059611,1746529849348,-500.0,0.00019973,2]
[360059612,1746529849358,-500.0,0.00019973,2]
[360059613,1746529849368,-501.26193126,0.00019973,2]
[360059614,1746529849379,-501.06170248,0.00019973,2]
[360059615,1746529849389,-227.546,0.00019973,2]
[360059616,1746529849399,-3273.664,0.00019974,2]
[360059617,1746529849410,-182.758,0.00019975,2]
[360059618,1746529849419,-260.1,0.00019975,2]
[360059619,1746529849429,-203.026,0.00019975,2]
[360059620,1746529849439,-1435.161,0.00019975,2]
[360059621,1746529849448,-931.145,0.00019975,2]
[360059622,1746529849458,-819.0,0.00019975,2]
[360059623,1746529849467,-625.0,0.00019975,2]
[360059624,1746529849477,-1451.0,0.00019975,2]
[360059625,1746529849486,-1055.355,0.00019975,2]
[360059626,1746529849495,-550.0,0.00019975,2]
[360059627,1746529849504,-665.05,0.00019975,2]
[360059628,1746529849514,-1243.0,0.00019975,2]
[360059629,1746529849523,-450.0,0.00019982,2]
[360059630,1746529849533,-156.61123949,0.00019982,2]
[360059631,1746529849542,-450.0,0.00019982,2]
[360059632,1746529849551,-450.0,0.00019982,2]
[360059633,1746529849560,-2545.69,0.00019982,2]
[360059634,1746529849570,-450.0,0.00019983,2]
[360059635,1746529849580,-191.8929911,0.00019983,2]
[360059636,1746529849589,-450.0,0.00019983,2]
[360059637,1746529849598,-450.0,0.00019983,2]
[360059638,1746529849608,-450.0,0.00019983,2]
[360059639,1746529849617,-450.0,0.00019983,2]
[360059640,1746529849626,-450.0,0.00019983,2]
[360059641,1746529849636,-318.97367761,0.00019983,2]
[360059642,1746529849646,-450.0,0.00019983,2]
[360059643,1746529849655,-275.91164712,0.00019983,2]
[360059644,1746529849665,-450.0,0.00019983,2]
[360059645,1746529849676,-450.0,0.00019983,2]
[360059646,1746529849686,-580.44,0.00019983,2]
[360059647,1746529849697,-450.0,0.00019983,2]
[360059648,1746529849707,-450.0,0.00019983,2]
[360059649,1746529849717,-582.32,0.00019985,2]
[360059650,1746529849727,-450.0,0.00019985,2]
[360059651,1746529849738,-450.0,0.00019985,2]
[360059652,1746529849747,-450.0,0.00019985,2]
[360059653,1746529849757,-516.12,0.00019985,2]
[360059654,1746529849766,-450.0,0.00019985,2]
[360059655,1746529849777,-450.0,0.00019985,2]
[360059656,1746529849787,-450.0,0.00019985,2]
[360059657,1746529849796,-315.69530754,0.00019985,2]
[360059658,1746529849805,-583.61,0.00019985,2]
[360059659,1746529849815,-330.55900909,0.00019985,2]
[360059660,1746529849826,-2325.4884,0.00019985,2]
[360059661,1746529849836,-450.0,0.00019985,2]
[360059662,1746529849846,-450.0,0.00019985,2]
[360059663,1746529849855,-483.62449929,0.00019985,2]
[360059664,1746529849865,-485.00383769,0.00019985,2]
[360059665,1746529849876,-450.0,0.00019985,2]
[360059666,1746529849886,-450.0,0.00019985,2]
[360059667,1746529849895,-450.0,0.00019985,2]
[360059668,1746529849904,-201.70508769,0.00019985,2]
[360059669,1746529849914,-209.90316244,0.00019985,2]
[360059670,1746529849924,-450.0,0.00019985,2]
[360059671,1746529849933,-450.0,0.00019985,2]
[360059672,1746529849943,-450.0,0.00019985,2]
[360059673,1746529849952,-450.0,0.00019985,2]
[360059674,1746529849962,-450.0,0.00019985,2]
[360059675,1746529849971,-450.0,0.00019985,2]
[360059676,1746529849980,-532.91,0.00019985,2]
[360059677,1746529849990,-450.0,0.00019985,2]
[360059678,1746529849999,-450.0,0.00019985,2]
[360059679,1746529850009,-483.06,0.00019985,2]
[360059680,1746529850018,-450.0,0.00019985,2]
[360059681,1746529850028,-9149.9,0.00019985,2]
[360059682,1746529850037,-450.37,0.00019985,2]
[360059683,1746529850047,-450.0,0.00019985,2]
[360059684,1746529850056,-450.0,0.00019985,2]
[360059685,1746529850065,-450.0,0.00019985,2]
[360059686,1746529850074,-202.7,0.00019985,2]
[360059687,1746529850084,-450.0,0.00019985,2]
[360059688,1746529850093,-450.0,0.00019985,2]
[360059689,1746529850103,-991.0,0.00019986,2]
[360059690,1746529850112,-16155.2603333,0.00019986,2]
[360059691,1746529850121,-3462.1605256,0.00019986,2]
[360059692,1746529850131,-117991.4391785,0.00019986,2]
[360059693,1746529850140,-223.83,0.00019995,2]
[360059694,1746529850149,-522.64168789,0.00019995,2]
[360059695,1746529850159,-450.0,0.00019997,2]
[360059696,1746529850169,-450.0,0.00019997,2]
[360059697,1746529850179,-450.0,0.00019997,2]
[360059698,1746529850188,-450.0,0.00019997,2]
[360059699,1746529850198,-450.0,0.00019997,2]
[360059700,1746529850208,-380.39807504,0.00019997,2]
[360059701,1746529850217,-450.0,0.00019997,2]
[360059702,1746529850226,-450.0,0.00019997,2]
[360059703,1746529850236,-450.0,0.00019997,2]
[360059704,1746529850245,-450.0,0.00019997,2]
[360059705,1746529850255,-518.19,0.00019997,2]
[360059706,1746529850265,-450.0,0.00019997,2]
[360059707,1746529850274,-450.0,0.00019997,2]
[360059708,1746529850284,-450.0,0.00019997,2]
[360059709,1746529850293,-481.19,0.00019997,2]
[360059710,1746529850303,-2000.0,0.00019998,2]
[360059711,1746529850312,-150.0,0.00019998,2]
[360059712,1746529850322,-450.0,0.00019998,2]
[360059713,1746529850332,-450.0,0.00019998,2]
[360059714,1746529850341,-450.0,0.00019998,2]
[360059715,1746529850351,-450.0,0.00019998,2]
[360059716,1746529850360,-450.0,0.00019998,2]
[360059717,1746529850370,-500.0,0.00019998,2]
[360059718,1746529850380,-272.52630066,0.00019998,2]
[360059719,1746529850389,-485.36469276,0.00019998,2]
[360059720,1746529850399,-450.0,0.00019998,2]
[360059721,1746529850410,-450.0,0.00019998,2]
[360059722,1746529850420,-450.0,0.00019998,2]
[360059723,1746529850430,-450.0,0.00019998,2]
[360059724,1746529850439,-450.0,0.00019998,2]
[360059725,1746529850449,-1569.19681956,0.00019998,2]
[360059726,1746529850459,-450.0,0.00019998,2]
[360059727,1746529850469,-500.0,0.00019998,2]
[360059728,1746529850478,-564.0,0.00019998,2]
[360059729,1746529850488,-427.22,0.00019998,2]
[360059730,1746529850498,-500.0,0.00019998,2]
[360059731,1746529850507,-150.0,0.00019998,2]
[360059732,1746529850517,-9149.9,0.00019998,2]
[360059733,1746529850527,-450.0,0.00019998,2]
[360059734,1746529850536,-450.0,0.00019998,2]
[360059735,1746529850546,-450.0,0.00019998,2]
[360059736,1746529850555,-450.0,0.00019998,2]
[360059737,1746529850565,-450.0,0.00019998,2]
[360059738,1746529850575,-450.0,0.00019998,2]
[360059739,1746529850585,-450.0,0.00019998,2]
[360059740,1746529850595,-450.0,0.00019998,2]
[360059741,1746529850604,-359.93,0.00019998,2]
[360059742,1746529850613,-2545.69,0.00019998,2]
[360059743,1746529850623,-2545.69,0.00019998,2]
[360059744,1746529850632,-500.0,0.00019999,2]
[360059745,1746529850642,-500.0,0.00019999,2]
[360059746,1746529850652,-311.93520587,0.00019999,2]
[360059747,1746529850661,-7694.48426457,0.00019999,2]
[360059748,1746529850671,-11049.31232301,0.00019999,2]
[360059749,1746529850680,-154.906814,0.00019999,2]
[360059750,1746529850691,-151.0,0.00019999,2]
[360059751,1746529850700,-151.0,0.00019999,2]
[360059752,1746529850709,-151.0,0.00019999,2]
[360059753,1746529850719,-151.0,0.00019999,2]
[360059754,1746529850728,-151.0,0.00019999,2]
[360059755,1746529850738,-151.0,0.00019999,2]
[360059756,1746529850747,-151.0,0.00019999,2]
[360059757,1746529850756,-151.0,0.00019999,2]
[360059758,1746529850766,-151.0,0.00019999,2]
[360059759,1746529850775,-318.7,0.00019999,2]
[360059760,1746529850784,-450.0,0.00019999,2]
[360059761,1746529850794,-450.0,0.00019999,2]
[360059762,1746529850803,-340.09,0.00019999,2]
[360059763,1746529850813,-450.0,0.00019999,2]
[360059764,1746529850822,-450.0,0.00019999,2]
[360059765,1746529850832,-450.0,0.00019999,2]
[360059766,1746529850842,-450.0,0.00019999,2]
[360059767,1746529850851,-266.23,0.00019999,2]
[360059768,1746529850861,-377.32,0.00019999,2]
[360059769,1746529850870,-450.0,0.00019999,2]
[360059770,1746529850883,-450.0,0.00019999,2]
[360059771,1746529850893,-450.0,0.00019999,2]
[360059772,1746529850903,-450.0,0.00019999,2]
[360059773,1746529850913,-450.0,0.00019999,2]
[360059774,1746529850923,-450.0,0.00019999,2]
[360059775,1746529850932,-237.58,0.00019999,2]
[360059776,1746529850942,-2000.0,0.00019999,2]
[360059777,1746529850952,-2000.0,0.00019999,2]
[360059778,1746529850962,-151.0,0.00019999,2]
[360059779,1746529850971,-2000.0,0.00019999,2]
[360059780,1746529850980,-2000.0,0.00019999,2]
[360059781,1746529850990,-2000.0,0.00019999,2]
[360059782,1746529851000,-2000.0,0.00019999,2]
[360059783,1746529851009,-2000.0,0.00019999,2]
[360059784,1746529851019,-2000.0,0.00019999,2]
[360059785,1746529851028,-450.0,0.00019999,2]
[360059786,1746529851038,-450.0,0.00019999,2]
[360059787,1746529851047,-450.0,0.00019999,2]
[360059788,1746529851056,-235.40786114,0.00019999,2]
[360059789,1746529851066,-573.32,0.00019999,2]
[360059790,1746529851076,-151.0,0.00019999,2]
[360059791,1746529851085,-450.0,0.00019999,2]
[360059792,1746529851094,-450.0,0.00019999,2]
[360059793,1746529851103,-450.0,0.00019999,2]
[360059794,1746529851113,-151.0,0.00019999,2]
[360059795,1746529851122,-151.0,0.00019999,2]
[360059796,1746529851131,-151.0,0.00019999,2]
[360059797,1746529851140,-151.0,0.00019999,2]
[360059798,1746529851150,-151.0,0.00019999,2]
[360059799,1746529851160,-158.999547,0.00019999,2]
[360059800,1746529851169,-151.0,0.00019999,2]
[360059801,1746529851179,-475.144424,0.00019999,2]
[360059802,1746529851188,-288.095913,0.00019999,2]
[360059803,1746529851198,-450.0,0.00019999,2]
[360059804,1746529851207,-450.0,0.00019999,2]
[360059805,1746529851217,-475.144424,0.00019999,2]
[360059806,1746529851227,-288.095913,0.00019999,2]
[360059807,1746529851236,-151.0,0.00019999,2]
[360059808,1746529851246,-151.0,0.00019999,2]
[360059809,1746529851256,-151.0,0.00019999,2]
[360059810,1746529851266,-460.186197,0.00019999,2]
[360059811,1746529851275,-163.0,0.00019999,2]
[360059812,1746529851285,-460.186197,0.00019999,2]
[360059813,1746529851295,-9149.9,0.00019999,2]
[360059814,1746529851305,-9149.9,0.00019999,2]
[360059815,1746529851315,-9149.9,0.00019999,2]
[360059816,1746529851324,-9149.9,0.00019999,2]
[360059817,1746529851334,-9149.9,0.00019999,2]
[360059818,1746529851344,-9149.9,0.00019999,2]
[360059819,1746529851354,-9149.9,0.00019999,2]
[360059820,1746529851478,-9149.9,0.00019999,2]
[360059821,1746529851488,-9149.9,0.00019999,2]
[360059822,1746529851497,-9149.9,0.00019999,2]
[360059823,1746529851506,-286.16020198,0.00019999,2]
[360059824,1746529851713,-450.0,0.00019884,2]
[360059825,1746529851724,-8863.73979802,0.00019999,2]
[360059826,1746529851733,-686.189369,0.00019999,2]
[360059827,1746529851742,-9149.9,0.00019999,2]
[360059828,1746529851751,-9149.9,0.00019999,2]
[360059829,1746529851760,-4842.27662899,0.00019999,2]
[360059830,1746529851771,-4307.62337101,0.00019999,2]
[360059831,1746529851780,-5543.53698747,0.00019999,2]
[360059832,1746529851828,-374.83743612,0.00019799,2]
[360059833,1746529851837,-3606.36301253,0.00019999,2]
[360059834,1746529851846,-7670.67148352,0.00019999,2]
[360059835,1746529851859,-1479.22851648,0.00019999,2]
[360059836,1746529851870,-2540.72845332,0.00019999,2]
[360059837,1746529851884,-6609.17154668,0.00019999,2]
[360059838,1746529851894,-2137.62975613,0.00019999,2]
[360059839,1746529851931,-7012.27024387,0.00019999,2]
[360059840,1746529851940,-3519.34975613,0.00019999,2]
[360059841,1746529851951,-4290.33293361,0.00019999,2]
[360059842,1746529865081,250.0,0.00017,2]
[360059843,1746529866181,300.0,0.00019,2]
[360059844,1746529913373,500.0,0.00029589,30]
[360059845,1746529927169,688.46,0.00018983,2]
[360059846,1746529938192,174.38,0.00015171,2]
[360059847,1746529986276,424.73,0.00025,90]
[360059848,1746529992958,3256.27131427,0.00018938,2]
[360059849,1746529992981,1202.47868573,0.00018938,2]
[360059850,1746530105626,3232.78,0.00019,2]
[360059851,1746530107400,3232.78,0.00019,2]
[360059852,1746530109090,2331.96131427,0.00019,2]
[360059853,1746530109111,900.81868573,0.00019,2]
[360059854,1746530132866,1989.35584633,0.00019,2]
[360059855,1746530144513,500.0,0.00018904,2]
[360059856,1746530144779,500.0,0.00018904,2]
[360059857,1746530145089,500.0,0.00018904,2]
[360059858,1746530145428,293.71801786,0.00018904,2]
[360059859,1746530145449,206.28198214,0.00018904,2]
[360059860,1746530145730,500.0,0.00018904,2]
[360059861,1746530170469,516.71,0.00018868,2]
[360059862,1746530178713,2388.99,0.00018868,2]
[360059863,1746530301161,276.85,0.00018803,2]
[360059864,1746530301365,276.85,0.00018808,2]
[360059865,1746530301592,276.85,0.00018813,2]
[360059866,1746530301782,163.4923076,0.00018818,2]
[360059867,1746530301803,113.3576924,0.00018818,2]
[360059868,1746530301984,276.85,0.00018823,2]
[360059869,1746530302190,276.85,0.00018828,2]
[360059870,1746530302413,276.85,0.00018833,2]
[360059871,1746530302655,223.3857934,0.00018838,2]
[360059872,1746530302676,53.4642066,0.00018838,2]
[360059873,1746530302856,276.85,0.00018843,2]
[360059874,1746530303063,276.85,0.00018848,2]
[360059875,1746530303270,276.85,0.00018853,2]
[360059876,1746530303459,276.85,0.00018858,2]
[360059877,1746530303867,276.85,0.00018863,2]
[360059878,1746530304070,276.85,0.00018867,2]
[360059879,1746530304319,276.85,0.00018872,2]
[360059880,1746530304502,276.85,0.00018877,2]
[360059881,1746530304933,276.85,0.00018882,2]
[360059882,1746530305081,286.15,0.00030137,120]
[360059883,1746530305136,276.85,0.00018887,2]
[360059884,1746530305349,276.85,0.00018892,2]
[360059885,1746530305542,276.85,0.00018897,2]
[360059886,1746530374242,1071.28631553,0.0002,30]
[360059887,1746530405537,3550.6,0.00019,2]
[360059888,1746530528062,3073.7357934,0.00018802,2]
[360059889,1746530528085,5051.4842066,0.00018802,2]
[360059890,1746530558631,155.15,0.00018803,2]
[360059891,1746530686406,4793.3657934,0.000188,2]
[360059892,1746530686427,10000.0,0.000188,2]
[360059893,1746530686447,10000.0,0.000188,2]
[360059894,1746530686467,10000.0,0.000188,2]
[360059895,1746530686487,10000.0,0.000188,2]
[360059896,1746530686508,10000.0,0.000188,2]
[360059897,1746530686528,10000.0,0.000188,2]
[360059898,1746530686548,10000.0,0.000188,2]
[360059899,1746530686568,10000.0,0.000188,2]
[360059900,1746530686591,10000.0,0.000188,2]
[360059901,1746530686612,5206.6342066,0.000188,2]
[360059902,1746530694037,500.0,0.00018821,2]
[360059903,1746530705452,4293.3657934,0.00019,2]
[360059904,1746530705485,1242.8942066,0.00019,2]
[360059905,1746530706219,166.0,0.00019386,2]
[360059906,1746530710891,683.73960444,0.000154,2]
[360059907,1746530717953,200.0,0.00019,2]
[360059908,1746530720682,182.20771178,9e-05,2]
[360059909,1746530726526,232.5994261,0.000108,2]
[360059910,1746530728717,430.22393099,0.00011,2]
[360059911,1746530729246,598.59,0.00016905,2]
[360059912,1746530729442,598.59,0.00019169,2]
[360059913,1746530755728,829.02606976,6.94e-05,2]
[360059914,1746530763530,4836.12905033,0.000195,2]
[360059915,1746530763554,10000.0,0.000195,2]
[360059916,1746530763577,10000.0,0.000195,2]
[360059917,1746530763599,10000.0,0.000195,2]
[360059918,1746530763622,10000.0,0.000195,2]
[360059919,1746530763645,5163.87094967,0.000195,2]
[360059921,1746530777170,4836.12905033,0.000192,2]
[360059922,1746530777191,10000.0,0.000192,2]
[360059923,1746530777217,35163.87094967,0.000192,2]
[360059924,1746530812376,100000.0,0.000189,2]
[360059925,1746530815773,500.0,0.00018904,2]
[360059926,1746530816081,500.0,0.00018904,2]
[360059927,1746530816393,500.0,0.00018904,2]
[360059928,1746530816822,500.0,0.00018904,2]
[360059929,1746530817458,500.0,0.00018904,2]
[360059930,1746530827125,278.5955,0.000153,2]
[360059931,1746530854175,250.0,0.0001879,2]
[360059932,1746530875518,5524.66017603,0.0001,2]
[360059933,1746530900043,-163.86,0.00019552,2]
[360059934,1746530903779,-245.76967454,0.00019552,2]
[360059935,1746530909986,1149.17376167,0.00018,2]
[360059936,1746530914428,4275.86706331,0.000149,2]
[360059937,1746530915876,-176.33059121,0.00019552,2]
[360059938,1746530916430,2646.64633745,0.0001,2]
[360059940,1746530920833,157.23,0.00018779,2]
[360059941,1746530923399,1366.23162072,0.00010136,2]
[360059942,1746530923662,13990.79577226,0.00013368,2]
[360059943,1746530931433,-290.50940879,0.00019552,2]
[360059944,1746530946593,-188.76412246,0.00019552,2]
[360059945,1746530989119,5018.42,0.00018769,2]
[360059953,1746531032203,-246.94945882,0.0001963,2]
[360059954,1746531032212,-748.19474226,0.00019649,2]
[360059955,1746531032223,-451.80525774,0.00019649,2]
[360059956,1746531032233,-550.0,0.00019649,2]
[360059957,1746531032245,-300.0,0.00019649,2]
[360059958,1746531032255,-200.0,0.00019649,2]
[360059959,1746531032264,-589.67997766,0.00019649,2]
[360059960,1746531032276,-269.445,0.00019649,2]
[360059961,1746531032287,-140.87502234,0.00019649,2]
[360059962,1746531032296,-256.40382322,0.0001965,2]
[360059963,1746531032307,-2401.93954754,0.0001965,2]
[360059964,1746531032319,-585.30398229,0.0001965,2]
[360059965,1746531032336,-599.37000001,0.0001965,2]
[360059966,1746531032348,-1124.49855846,0.0001965,2]
[360059967,1746531032370,-685.26778787,0.0001965,2]
[360059968,1746531032381,-1169.999985,0.0001965,2]
[360059969,1746531032427,-459.06208761,0.0001965,2]
[360059970,1746531032439,-2699.56891301,0.0001965,2]
[360060063,1746531038168,-5530.527875,0.0001965,2]
[360060064,1746531038178,-569.22703186,0.0001965,2]
[360060074,1746531038331,-26224.24088229,0.0001965,2]
[360060075,1746531038342,-883.883595,0.0001965,2]
[360060076,1746531038355,-930.59712969,0.0001965,2]
[360060077,1746531038493,-8432.42301464,0.0001965,2]
[360060100,1746531040420,-48913.91391253,0.0001965,2]
[360060101,1746531040430,-200.0,0.00019658,2]
[360060102,1746531040440,-250.0,0.00019667,2]
[360060103,1746531040449,-500.0,0.00019674,2]
[360060104,1746531040459,-500.0,0.00019674,2]
[360060105,1746531040468,-500.0,0.00019674,2]
[360060106,1746531040477,-500.0,0.00019674,2]
[360060107,1746531040487,-500.0,0.00019674,2]
[360060108,1746531040497,-154.02367531,0.00019674,2]
[360060109,1746531040506,-500.0,0.00019674,2]
[360060110,1746531040516,-500.0,0.00019674,2]
[360060111,1746531040525,-500.0,0.00019674,2]
[360060112,1746531040534,-500.0,0.00019674,2]
[360060113,1746531040544,-500.0,0.00019674,2]
[360060114,1746531040553,-500.0,0.00019674,2]
[360060115,1746531040563,-500.0,0.00019674,2]
[360060116,1746531040572,-500.0,0.00019674,2]
[360060117,1746531040582,-500.0,0.00019674,2]
[360060118,1746531040591,-500.0,0.00019674,2]
[360060119,1746531040601,-500.0,0.00019674,2]
[360060120,1746531040610,-500.0,0.00019674,2]
[360060121,1746531040620,-500.0,0.00019674,2]
[360060122,1746531040629,-500.0,0.00019674,2]
[360060123,1746531040639,-500.0,0.00019674,2]
[360060124,1746531040648,-9905.182,0.00019675,2]
[360060125,1746531040657,-2500.0,0.00019675,2]
[360060126,1746531040667,-571.17732568,0.0001968,2]
[360060127,1746531040676,-338.31672111,0.00019684,2]
[360060128,1746531040685,-207.4,0.00019699,2]
[360060129,1746531040695,-1000.0,0.000197,2]
[360060130,1746531040704,-174.95629874,0.000197,2]
[360060131,1746531040713,-1989.60170659,0.000197,2]
[360060132,1746531040723,-338.31672105,0.00019708,2]
[360060133,1746531040732,-8190.5722,0.00019711,2]
[360060134,1746531040741,-1989.60170656,0.00019722,2]
[360060136,1746531040750,-1000.0,0.00019723,2]
[360060138,1746531040759,-338.31672105,0.00019732,2]
[360060140,1746531040768,-1989.60170656,0.00019744,2]
[360060141,1746531040777,-4159.4731,0.00019747,2]
[360060142,1746531040787,-500.0,0.00019748,2]
[360060143,1746531040796,-338.31672105,0.00019756,2]
[360060144,1746531040805,-155.1390201,0.0001976,2]
[360060145,1746531040815,-155.0,0.00019763,2]
[360060146,1746531040823,-151.0,0.00019763,2]
[360060147,1746531040832,-151.0,0.00019763,2]
[360060148,1746531040841,-668.65185757,0.00019763,2]
[360060149,1746531040850,-1989.60170656,0.00019767,2]
[360060150,1746531040859,-500.0,0.00019773,2]
[360060151,1746531040868,-501.33101679,0.00019773,2]
[360060152,1746531040877,-500.0,0.00019773,2]
[360060153,1746531040886,-500.0,0.00019773,2]
[360060154,1746531040895,-3827.42138151,0.00019774,2]
[360060155,1746531040905,-450.0,0.00019774,2]
[360060157,1746531040914,-450.0,0.00019774,2]
[360060158,1746531040923,-450.0,0.00019774,2]
[360060159,1746531040931,-450.0,0.00019774,2]
[360060160,1746531040940,-450.0,0.00019774,2]
[360060161,1746531040949,-450.0,0.00019774,2]
[360060162,1746531040958,-450.0,0.00019774,2]
[360060163,1746531040968,-450.0,0.00019774,2]
[360060164,1746531040977,-450.0,0.00019774,2]
[360060165,1746531040987,-450.0,0.00019774,2]
[360060166,1746531040997,-120723.3,0.00019775,2]
[360060167,1746531041006,-338.31672105,0.0001978,2]
[360060168,1746531041016,-1989.60170656,0.00019789,2]
[360060170,1746531041025,-4631.4894,0.00019797,2]
[360060172,1746531041035,-450.0,0.00019799,2]
[360060173,1746531041044,-450.0,0.00019799,2]
[360060175,1746531041055,-450.0,0.00019799,2]
[360060176,1746531041064,-450.0,0.00019799,2]
[360060177,1746531041073,-450.0,0.00019799,2]
[360060178,1746531041082,-547.43514998,0.00019799,2]
[360060179,1746531041091,-318.97367761,0.00019799,2]
[360060180,1746531041100,-593.34,0.00019799,2]
[360060181,1746531041109,-580.13669269,0.00019799,2]
[360060182,1746531041118,-450.0,0.00019799,2]
[360060183,1746531041127,-450.0,0.00019799,2]
[360060184,1746531041136,-450.0,0.00019799,2]
[360060185,1746531041145,-450.0,0.00019799,2]
[360060186,1746531041154,-450.0,0.00019799,2]
[360060187,1746531041163,-450.0,0.00019799,2]
[360060188,1746531041173,-604.06,0.00019799,2]
[360060189,1746531041182,-450.0,0.00019799,2]
[360060190,1746531041190,-450.0,0.00019799,2]
[360060191,1746531041199,-100000.0,0.000198,2]
[360060192,1746531041209,-1000.0,0.000198,2]
[360060193,1746531041218,-338.31672105,0.00019804,2]
[360060194,1746531041227,-1989.60170656,0.00019811,2]
[360060195,1746531041236,-338.31672105,0.00019828,2]
[360060196,1746531041249,-1989.60170656,0.00019833,2]
[360060197,1746531041258,-450.0,0.00019847,2]
[360060198,1746531041267,-450.0,0.00019847,2]
[360060199,1746531041276,-450.0,0.00019847,2]
[360060200,1746531041285,-450.0,0.00019847,2]
[360060201,1746531041295,-450.0,0.00019847,2]
[360060202,1746531041304,-450.0,0.00019847,2]
[360060203,1746531041313,-211.87322612,0.00019847,2]
[360060204,1746531041322,-450.0,0.00019847,2]
[360060205,1746531041331,-450.0,0.00019847,2]
[360060206,1746531041340,-450.0,0.00019847,2]
[360060207,1746531041349,-450.0,0.00019847,2]
[360060208,1746531041360,-450.0,0.00019847,2]
[360060209,1746531041369,-450.0,0.00019847,2]
[360060210,1746531041378,-450.0,0.00019847,2]
[360060211,1746531041387,-450.0,0.00019847,2]
[360060212,1746531041396,-450.0,0.00019847,2]
[360060213,1746531041406,-525.59175888,0.00019847,2]
[360060214,1746531041415,-450.0,0.00019847,2]
[360060215,1746531041423,-450.0,0.00019847,2]
[360060216,1746531041433,-450.0,0.00019847,2]
[360060217,1746531041442,-450.0,0.00019847,2]
[360060218,1746531041451,-450.0,0.00019847,2]
[360060219,1746531041460,-526.9,0.00019847,2]
[360060220,1746531041469,-450.0,0.00019847,2]
[360060221,1746531041478,-450.0,0.00019847,2]
[360060222,1746531041488,-450.0,0.00019847,2]
[360060223,1746531041497,-450.0,0.00019847,2]
[360060224,1746531041507,-450.0,0.00019847,2]
[360060225,1746531041516,-338.31672105,0.00019852,2]
[360060226,1746531041525,-1989.60170656,0.00019856,2]
[360060227,1746531041534,-477.31618519,0.00019859,2]
[360060228,1746531041543,-477.54210262,0.00019859,2]
[360060229,1746531041552,-500.0,0.00019859,2]
[360060230,1746531041562,-450.0,0.00019859,2]
[360060231,1746531041571,-591.99632215,0.00019859,2]
[360060232,1746531041581,-500.0,0.00019859,2]
[360060233,1746531041591,-450.0,0.00019859,2]
[360060234,1746531041600,-450.0,0.00019859,2]
[360060235,1746531041609,-450.0,0.00019859,2]